[Event "Titled Tuesday Blitz August 1 Early 2023"]
[White "Skiadopoulos, Nikolaos"]
[Black "feuervogel1000000"]
[WhiteFideId "4200772"]
[WhiteElo "1849"]
[BlackElo "2513"]
[Result "0-1"]
[Round "4"]
[TimeControl "180+1"]
[Date "2023.08.01"]
[WhiteClock "0:00:00"]
[BlackClock "0:02:04"]
[Board "139"]

1. e4 {[%clk 0:02:59]}  c5 {[%clk 0:02:59]} 2. Nf3 {[%clk 0:02:57]}  d6 {[%clk 0:02:59]} 3. c3 {[%clk 0:02:55]}  Nf6 {[%clk 0:02:58]} 4. Be2 {[%clk 0:02:53]}  g6 {[%clk 0:02:57]} 5. O-O {[%clk 0:02:52]}  Bg7 {[%clk 0:02:56]} 6. d3 {[%clk 0:02:45]}  O-O {[%clk 0:02:55]} 7. Bg5 {[%clk 0:02:45]}  Nc6 {[%clk 0:02:54]} 8. h3 {[%clk 0:02:44]}  b5 {[%clk 0:02:50]} 9. Qc1 {[%clk 0:02:36]}  Rb8 {[%clk 0:02:49]} 10. Bh6 {[%clk 0:02:35]}  b4 {[%clk 0:02:48]} 11. Bxg7 {[%clk 0:02:34]}  Kxg7 {[%clk 0:02:48]} 12. Nbd2 {[%clk 0:02:28]}  a5 {[%clk 0:02:42]} 13. Nc4 {[%clk 0:02:17]}  Ba6 {[%clk 0:02:39]} 14. e5 {[%clk 0:02:08]}  dxe5 {[%clk 0:02:35]} 15. Ncxe5 {[%clk 0:02:07]}  Nxe5 {[%clk 0:02:35]} 16. Nxe5 {[%clk 0:02:07]}  Qd6 {[%clk 0:02:34]} 17. f4 {[%clk 0:02:00]}  Nd5 {[%clk 0:02:29]} 18. c4 {[%clk 0:01:54]}  Nc7 {[%clk 0:02:27]} 19. Bf3 {[%clk 0:01:42]}  Ne6 {[%clk 0:02:24]} 20. b3 {[%clk 0:01:11]}  Nd4 {[%clk 0:02:22]} 21. Bd1 {[%clk 0:00:55]}  Bb7 {[%clk 0:02:18]} 22. Qe3 {[%clk 0:00:45]}  Rbd8 {[%clk 0:02:14]} 23. a3 {[%clk 0:00:38]}  e6 {[%clk 0:02:10]} 24. axb4 {[%clk 0:00:37]}  axb4 {[%clk 0:02:11]} 25. Ra7 {[%clk 0:00:37]}  Qb6 {[%clk 0:02:11]} 26. Rxb7 {[%clk 0:00:35]}  Qxb7 {[%clk 0:02:09]} 27. Nf3 {[%clk 0:00:29]}  Qc7 {[%clk 0:02:08]} 28. Nxd4 {[%clk 0:00:24]}  Rxd4 {[%clk 0:02:09]} 29. g3 {[%clk 0:00:20]}  Rfd8 {[%clk 0:02:06]} 30. Be2 {[%clk 0:00:20]}  Qd6 {[%clk 0:02:04]} 31. Kg2 {[%clk 0:00:00]}  Ra8 {[%clk 0:02:04]} 0-1


[Site "https://www.chess.com"]

[Event "Titled Tuesday Blitz August 1 Early 2023"]
[White "Harshavardhan G B"]
[Black "Dobre, Claudiu-Cristian"]
[WhiteFideId "25059009"]
[BlackFideId "1211854"]
[WhiteElo "2859"]
[BlackElo "2412"]
[Result "1-0"]
[Round "4"]
[TimeControl "180+1"]
[Date "2023.08.01"]
[WhiteClock "0:00:11"]
[BlackClock "0:00:00"]
[Board "141"]

1. Nf3 {[%clk 0:03:00]}  d5 {[%clk 0:02:56]} 2. c4 {[%clk 0:02:59]}  c6 {[%clk 0:02:52]} 3. d4 {[%clk 0:02:56]}  Nf6 {[%clk 0:02:50]} 4. Nc3 {[%clk 0:02:37]}  e6 {[%clk 0:02:50]} 5. Bg5 {[%clk 0:02:35]}  Nbd7 {[%clk 0:02:49]} 6. e3 {[%clk 0:02:36]}  Qa5 {[%clk 0:02:49]} 7. cxd5 {[%clk 0:02:34]}  exd5 {[%clk 0:02:48]} 8. Bd3 {[%clk 0:02:34]}  Bb4 {[%clk 0:02:46]} 9. O-O {[%clk 0:02:33]}  O-O {[%clk 0:01:57]} 10. Ne5 {[%clk 0:02:27]}  Bxc3 {[%clk 0:01:19]} 11. bxc3 {[%clk 0:02:25]}  Nxe5 {[%clk 0:01:19]} 12. dxe5 {[%clk 0:02:21]}  Ne4 {[%clk 0:01:18]} 13. Qh5 {[%clk 0:01:50]}  Qxc3 {[%clk 0:01:05]} 14. Bxe4 {[%clk 0:01:48]}  dxe4 {[%clk 0:01:03]} 15. Be7 {[%clk 0:01:45]}  Re8 {[%clk 0:01:02]} 16. Bd6 {[%clk 0:01:45]}  Qc4 {[%clk 0:00:30]} 17. Qh4 {[%clk 0:01:40]}  Bf5 {[%clk 0:00:26]} 18. Rad1 {[%clk 0:01:38]}  Qe6 {[%clk 0:00:24]} 19. Qf4 {[%clk 0:01:35]}  Rad8 {[%clk 0:00:21]} 20. a4 {[%clk 0:01:33]}  b6 {[%clk 0:00:19]} 21. h3 {[%clk 0:01:29]}  Rd7 {[%clk 0:00:19]} 22. g4 {[%clk 0:01:28]}  Bg6 {[%clk 0:00:19]} 23. h4 {[%clk 0:01:24]}  h5 {[%clk 0:00:19]} 24. gxh5 {[%clk 0:01:16]}  Bxh5 {[%clk 0:00:18]} 25. Rd4 {[%clk 0:01:16]}  Qg4+ {[%clk 0:00:18]} 26. Qxg4 {[%clk 0:01:15]}  Bxg4 {[%clk 0:00:18]} 27. Rxe4 {[%clk 0:01:15]}  Be6 {[%clk 0:00:18]} 28. f4 {[%clk 0:01:13]}  Bh3 {[%clk 0:00:18]} 29. Rf2 {[%clk 0:01:11]}  Rxd6 {[%clk 0:00:17]} 30. Rc4 {[%clk 0:01:02]}  Rg6+ {[%clk 0:00:16]} 31. Kh2 {[%clk 0:01:02]}  Bf5 {[%clk 0:00:16]} 32. e4 {[%clk 0:01:01]}  Bc8 {[%clk 0:00:15]} 33. a5 {[%clk 0:00:53]}  c5 {[%clk 0:00:15]} 34. axb6 {[%clk 0:00:53]}  axb6 {[%clk 0:00:15]} 35. Rcc2 {[%clk 0:00:49]}  Rg4 {[%clk 0:00:15]} 36. Rb2 {[%clk 0:00:48]}  Rxh4+ {[%clk 0:00:15]} 37. Kg3 {[%clk 0:00:48]}  Rh3+ {[%clk 0:00:15]} 38. Kg2 {[%clk 0:00:48]}  Rh6 {[%clk 0:00:15]} 39. Kf3 {[%clk 0:00:48]}  Bb7 {[%clk 0:00:16]} 40. Rfd2 {[%clk 0:00:47]}  f6 {[%clk 0:00:16]} 41. Rd7 {[%clk 0:00:46]}  Ba8 {[%clk 0:00:16]} 42. Rxb6 {[%clk 0:00:44]}  fxe5 {[%clk 0:00:16]} 43. Rxh6 {[%clk 0:00:44]}  gxh6 {[%clk 0:00:17]} 44. f5 {[%clk 0:00:44]}  Kf8 {[%clk 0:00:14]} 45. Rc7 {[%clk 0:00:44]}  Rb8 {[%clk 0:00:13]} 46. Rxc5 {[%clk 0:00:44]}  Rb3+ {[%clk 0:00:13]} 47. Kg4 {[%clk 0:00:44]}  Bxe4 {[%clk 0:00:13]} 48. Rxe5 {[%clk 0:00:44]}  Rb4 {[%clk 0:00:13]} 49. Kh5 {[%clk 0:00:44]}  Kg7 {[%clk 0:00:12]} 50. Ra5 {[%clk 0:00:41]}  Bd3 {[%clk 0:00:11]} 51. Ra2 {[%clk 0:00:29]}  Rb7 {[%clk 0:00:11]} 52. Rf2 {[%clk 0:00:24]}  Rf7 {[%clk 0:00:08]} 53. f6+ {[%clk 0:00:24]}  Kh7 {[%clk 0:00:09]} 54. Rf4 {[%clk 0:00:23]}  Be2+ {[%clk 0:00:09]} 55. Kh4 {[%clk 0:00:23]}  Kg6 {[%clk 0:00:09]} 56. Rf2 {[%clk 0:00:24]}  Bd3 {[%clk 0:00:08]} 57. Rg2+ {[%clk 0:00:24]}  Kxf6 {[%clk 0:00:07]} 58. Kh5 {[%clk 0:00:25]}  Bf5 {[%clk 0:00:07]} 59. Rb2 {[%clk 0:00:22]}  Be6 {[%clk 0:00:05]} 60. Kxh6 {[%clk 0:00:22]}  Bf5 {[%clk 0:00:04]} 61. Rb6+ {[%clk 0:00:21]}  Be6 {[%clk 0:00:04]} 62. Rb2 {[%clk 0:00:17]}  Rf8 {[%clk 0:00:05]} 63. Rb7 {[%clk 0:00:12]}  Rh8+ {[%clk 0:00:05]} 64. Rh7 {[%clk 0:00:12]}  Rb8 {[%clk 0:00:05]} 65. Ra7 {[%clk 0:00:11]}  Bd5 {[%clk 0:00:04]} 66. Ra6+ {[%clk 0:00:11]}  Be6 {[%clk 0:00:04]} 67. Ra7 {[%clk 0:00:11]}  Rb4 {[%clk 0:00:03]} 68. Ra5 {[%clk 0:00:11]}  Rd4 {[%clk 0:00:02]} 69. Rb5 {[%clk 0:00:11]}  Bd7 {[%clk 0:00:00]} 70. Rb6+ {[%clk 0:00:11]} 1-0


[Site "https://www.chess.com"]

[Event "Titled Tuesday Blitz August 1 Early 2023"]
[White "Kaczur, Florian"]
[Black "Tsyhanchuk, Stanislav"]
[WhiteFideId "705098"]
[BlackFideId "13505130"]
[WhiteElo "2759"]
[BlackElo "2411"]
[Result "1-0"]
[Round "4"]
[TimeControl "180+1"]
[Date "2023.08.01"]
[WhiteClock "0:01:05"]
[BlackClock "0:00:01"]
[Board "142"]

1. d3 {[%clk 0:03:00]}  d5 {[%clk 0:02:59]} 2. Nd2 {[%clk 0:03:01]}  e5 {[%clk 0:02:57]} 3. Ndf3 {[%clk 0:03:01]}  Bd6 {[%clk 0:02:53]} 4. c4 {[%clk 0:02:58]}  c6 {[%clk 0:02:52]} 5. Qa4 {[%clk 0:02:49]}  Bd7 {[%clk 0:02:41]} 6. Qb3 {[%clk 0:02:46]}  Qb6 {[%clk 0:02:37]} 7. e4 {[%clk 0:02:38]}  Qxb3 {[%clk 0:02:28]} 8. axb3 {[%clk 0:02:37]}  Ne7 {[%clk 0:02:20]} 9. Ne2 {[%clk 0:02:33]}  Na6 {[%clk 0:02:19]} 10. Nc3 {[%clk 0:02:30]}  Nb4 {[%clk 0:02:19]} 11. Kd1 {[%clk 0:02:27]}  d4 {[%clk 0:02:17]} 12. Na2 {[%clk 0:02:26]}  f6 {[%clk 0:02:16]} 13. Nxb4 {[%clk 0:02:22]}  Bxb4 {[%clk 0:02:17]} 14. Ne1 {[%clk 0:02:22]}  c5 {[%clk 0:02:14]} 15. Nc2 {[%clk 0:02:21]}  Nc6 {[%clk 0:02:14]} 16. g3 {[%clk 0:02:18]}  Ke7 {[%clk 0:02:09]} 17. f4 {[%clk 0:02:15]}  Rhg8 {[%clk 0:01:53]} 18. Be2 {[%clk 0:02:03]}  exf4 {[%clk 0:01:50]} 19. Bxf4 {[%clk 0:01:54]}  g5 {[%clk 0:01:49]} 20. Nxb4 {[%clk 0:01:47]}  Nxb4 {[%clk 0:01:43]} 21. Bd2 {[%clk 0:01:47]}  Nc6 {[%clk 0:01:43]} 22. h4 {[%clk 0:01:38]}  gxh4 {[%clk 0:01:18]} 23. Rxh4 {[%clk 0:01:39]}  Rg7 {[%clk 0:01:18]} 24. Bf4 {[%clk 0:01:37]}  a5 {[%clk 0:01:08]} 25. Kd2 {[%clk 0:01:36]}  f5 {[%clk 0:00:58]} 26. e5 {[%clk 0:01:33]}  Rh8 {[%clk 0:00:48]} 27. Rah1 {[%clk 0:01:31]}  b6 {[%clk 0:00:46]} 28. Rh6 {[%clk 0:01:28]}  Be6 {[%clk 0:00:40]} 29. Bf3 {[%clk 0:01:23]}  Nd8 {[%clk 0:00:38]} 30. Bd5 {[%clk 0:01:23]}  Kf7 {[%clk 0:00:21]} 31. Rf6+ {[%clk 0:01:16]}  Ke7 {[%clk 0:00:20]} 32. Rhh6 {[%clk 0:01:17]}  Bxd5 {[%clk 0:00:05]} 33. cxd5 {[%clk 0:01:18]}  Nf7 {[%clk 0:00:05]} 34. Re6+ {[%clk 0:01:15]}  Kd7 {[%clk 0:00:05]} 35. Rxb6 {[%clk 0:01:12]}  Nxh6 {[%clk 0:00:05]} 36. Rb7+ {[%clk 0:01:12]}  Ke8 {[%clk 0:00:04]} 37. Rxg7 {[%clk 0:01:13]}  Ng4 {[%clk 0:00:04]} 38. Ra7 {[%clk 0:01:11]}  Rf8 {[%clk 0:00:03]} 39. e6 {[%clk 0:01:08]}  Rf6 {[%clk 0:00:03]} 40. Bg5 {[%clk 0:01:05]}  Rg6 {[%clk 0:00:01]} 41. Ra8# {[%clk 0:01:05]} 1-0


[Site "https://www.chess.com"]

[Event "Titled Tuesday Blitz August 1 Early 2023"]
[White "FuenfgegenWilly"]
[Black "Vakhlamov, Igor L."]
[BlackFideId "24126748"]
[WhiteElo "2410"]
[BlackElo "2719"]
[Result "0-1"]
[Round "4"]
[TimeControl "180+1"]
[Date "2023.08.01"]
[WhiteClock "0:00:58"]
[BlackClock "0:01:03"]
[Board "143"]

1. e4 {[%clk 0:03:00]}  c5 {[%clk 0:02:51]} 2. Nc3 {[%clk 0:03:00]}  e6 {[%clk 0:02:51]} 3. g3 {[%clk 0:02:58]}  Nc6 {[%clk 0:02:50]} 4. Bg2 {[%clk 0:02:59]}  Nf6 {[%clk 0:02:50]} 5. Nge2 {[%clk 0:02:57]}  d5 {[%clk 0:02:49]} 6. exd5 {[%clk 0:02:56]}  exd5 {[%clk 0:02:50]} 7. Nf4 {[%clk 0:02:54]}  d4 {[%clk 0:02:48]} 8. Ncd5 {[%clk 0:02:52]}  Nxd5 {[%clk 0:02:47]} 9. Nxd5 {[%clk 0:02:52]}  Bd6 {[%clk 0:02:43]} 10. O-O {[%clk 0:02:38]}  O-O {[%clk 0:02:43]} 11. d3 {[%clk 0:02:36]}  Bf5 {[%clk 0:02:38]} 12. Qf3 {[%clk 0:02:32]}  Qd7 {[%clk 0:02:34]} 13. h3 {[%clk 0:01:55]}  Bxh3 {[%clk 0:02:31]} 14. Bxh3 {[%clk 0:01:55]}  Qxh3 {[%clk 0:02:31]} 15. Bf4 {[%clk 0:01:56]}  Bxf4 {[%clk 0:02:20]} 16. Nxf4 {[%clk 0:01:57]}  Qf5 {[%clk 0:02:19]} 17. Rfe1 {[%clk 0:01:56]}  Rae8 {[%clk 0:02:13]} 18. Kg2 {[%clk 0:01:55]}  g6 {[%clk 0:02:00]} 19. Rh1 {[%clk 0:01:54]}  h5 {[%clk 0:01:58]} 20. Rh4 {[%clk 0:01:52]}  Re7 {[%clk 0:01:47]} 21. Rah1 {[%clk 0:01:51]}  Rfe8 {[%clk 0:01:19]} 22. g4 {[%clk 0:01:38]}  Qg5 {[%clk 0:01:17]} 23. Qg3 {[%clk 0:01:28]}  Ne5 {[%clk 0:01:10]} 24. gxh5 {[%clk 0:01:25]}  Qxg3+ {[%clk 0:01:11]} 25. fxg3 {[%clk 0:01:10]}  g5 {[%clk 0:01:11]} 26. R4h3 {[%clk 0:01:10]}  gxf4 {[%clk 0:01:09]} 27. gxf4 {[%clk 0:01:11]}  Ng4 {[%clk 0:01:09]} 28. Rg3 {[%clk 0:01:11]}  f5 {[%clk 0:01:09]} 29. Kh3 {[%clk 0:01:10]}  Kg7 {[%clk 0:01:06]} 30. Kh4 {[%clk 0:01:10]}  Kf6 {[%clk 0:01:06]} 31. c3 {[%clk 0:01:07]}  Rh8 {[%clk 0:01:05]} 32. Kh3 {[%clk 0:00:58]}  Rxh5+ {[%clk 0:01:03]} 0-1


[Site "https://www.chess.com"]

[Event "Titled Tuesday Blitz August 1 Early 2023"]
[White "Federzoni, Enzo"]
[Black "Csonka, Balazs"]
[WhiteFideId "2173301"]
[BlackFideId "742910"]
[WhiteElo "2409"]
[BlackElo "2717"]
[Result "0-1"]
[Round "4"]
[TimeControl "180+1"]
[Date "2023.08.01"]
[WhiteClock "0:01:48"]
[BlackClock "0:01:12"]
[Board "144"]

1. e4 {[%clk 0:02:59]}  c5 {[%clk 0:02:59]} 2. Nf3 {[%clk 0:02:59]}  e6 {[%clk 0:02:57]} 3. c3 {[%clk 0:02:55]}  d5 {[%clk 0:02:53]} 4. exd5 {[%clk 0:02:56]}  Qxd5 {[%clk 0:02:54]} 5. d4 {[%clk 0:02:56]}  Nf6 {[%clk 0:02:53]} 6. Be2 {[%clk 0:02:55]}  Nc6 {[%clk 0:02:45]} 7. c4 {[%clk 0:02:49]}  Qd8 {[%clk 0:02:32]} 8. dxc5 {[%clk 0:02:36]}  Qxd1+ {[%clk 0:02:33]} 9. Bxd1 {[%clk 0:02:36]}  Bxc5 {[%clk 0:02:33]} 10. O-O {[%clk 0:02:37]}  e5 {[%clk 0:02:19]} 11. Ba4 {[%clk 0:02:36]}  O-O {[%clk 0:01:50]} 12. Bxc6 {[%clk 0:02:35]}  bxc6 {[%clk 0:01:51]} 13. Nxe5 {[%clk 0:02:36]}  Re8 {[%clk 0:01:51]} 14. Nd3 {[%clk 0:02:32]}  Bd4 {[%clk 0:01:50]} 15. Na3 {[%clk 0:02:28]}  Bf5 {[%clk 0:01:50]} 16. Nb4 {[%clk 0:02:22]}  Bc5 {[%clk 0:01:22]} 17. Na6 {[%clk 0:02:12]}  Bxa3 {[%clk 0:01:17]} 18. bxa3 {[%clk 0:02:12]}  Bd3 {[%clk 0:01:18]} 19. Rd1 {[%clk 0:02:05]}  Be2 {[%clk 0:01:14]} 20. Re1 {[%clk 0:01:48]}  Bxc4 {[%clk 0:01:12]} 0-1


[Site "https://www.chess.com"]

[Event "Titled Tuesday Blitz August 1 Early 2023"]
[White "nickVet"]
[Black "Krzywda, Andrzej"]
[BlackFideId "1114565"]
[WhiteElo "2695"]
[BlackElo "2408"]
[Result "1-0"]
[Round "4"]
[TimeControl "180+1"]
[Date "2023.08.01"]
[WhiteClock "0:01:01"]
[BlackClock "0:00:00"]
[Board "145"]

1. e4 {[%clk 0:03:00]}  e5 {[%clk 0:02:59]} 2. Nf3 {[%clk 0:03:01]}  Nf6 {[%clk 0:02:59]} 3. Nxe5 {[%clk 0:03:01]}  d6 {[%clk 0:03:00]} 4. Nf3 {[%clk 0:03:01]}  Nxe4 {[%clk 0:03:00]} 5. d4 {[%clk 0:03:01]}  d5 {[%clk 0:03:00]} 6. Bd3 {[%clk 0:03:02]}  Be7 {[%clk 0:03:00]} 7. O-O {[%clk 0:03:02]}  Bf5 {[%clk 0:03:01]} 8. Re1 {[%clk 0:02:58]}  O-O {[%clk 0:03:00]} 9. c4 {[%clk 0:02:58]}  Nc6 {[%clk 0:02:55]} 10. cxd5 {[%clk 0:02:52]}  Qxd5 {[%clk 0:02:55]} 11. Bxe4 {[%clk 0:02:53]}  Bxe4 {[%clk 0:02:51]} 12. Nc3 {[%clk 0:02:52]}  Bxf3 {[%clk 0:02:45]} 13. Nxd5 {[%clk 0:02:51]}  Bxd1 {[%clk 0:02:45]} 14. Nxe7+ {[%clk 0:02:47]}  Nxe7 {[%clk 0:02:41]} 15. Rxe7 {[%clk 0:02:44]}  Rfe8 {[%clk 0:02:28]} 16. Rxe8+ {[%clk 0:02:38]}  Rxe8 {[%clk 0:02:28]} 17. Be3 {[%clk 0:02:39]}  Bg4 {[%clk 0:02:14]} 18. d5 {[%clk 0:02:40]}  Rd8 {[%clk 0:02:05]} 19. Rc1 {[%clk 0:02:34]}  Rxd5 {[%clk 0:01:24]} 20. f3 {[%clk 0:02:34]}  Be6 {[%clk 0:01:11]} 21. Rxc7 {[%clk 0:02:33]}  Rb5 {[%clk 0:01:01]} 22. b3 {[%clk 0:02:29]}  a5 {[%clk 0:00:59]} 23. h4 {[%clk 0:02:23]}  h6 {[%clk 0:00:59]} 24. g4 {[%clk 0:02:21]}  a4 {[%clk 0:00:47]} 25. bxa4 {[%clk 0:02:20]}  Rb1+ {[%clk 0:00:47]} 26. Bc1 {[%clk 0:02:07]}  Bxa2 {[%clk 0:00:39]} 27. Kf2 {[%clk 0:02:07]}  Bd5 {[%clk 0:00:38]} 28. a5 {[%clk 0:01:59]}  Rb3 {[%clk 0:00:34]} 29. Be3 {[%clk 0:01:59]}  Rb2+ {[%clk 0:00:33]} 30. Kg3 {[%clk 0:01:59]}  Rb3 {[%clk 0:00:33]} 31. Rc8+ {[%clk 0:01:48]}  Kh7 {[%clk 0:00:33]} 32. Re8 {[%clk 0:01:49]}  Ra3 {[%clk 0:00:31]} 33. Re5 {[%clk 0:01:33]}  Rxa5 {[%clk 0:00:23]} 34. h5 {[%clk 0:01:34]}  Rb5 {[%clk 0:00:22]} 35. Bd4 {[%clk 0:01:30]}  Bc6 {[%clk 0:00:22]} 36. Re3 {[%clk 0:01:29]}  Rd5 {[%clk 0:00:18]} 37. Ba1 {[%clk 0:01:28]}  Rd7 {[%clk 0:00:18]} 38. f4 {[%clk 0:01:24]}  f6 {[%clk 0:00:18]} 39. Kh4 {[%clk 0:01:19]}  Kg8 {[%clk 0:00:18]} 40. g5 {[%clk 0:01:18]}  hxg5+ {[%clk 0:00:18]} 41. fxg5 {[%clk 0:01:19]}  fxg5+ {[%clk 0:00:18]} 42. Kxg5 {[%clk 0:01:20]}  Rd5+ {[%clk 0:00:17]} 43. Be5 {[%clk 0:01:19]}  Kf7 {[%clk 0:00:17]} 44. Kf4 {[%clk 0:01:18]}  Rb5 {[%clk 0:00:16]} 45. Rg3 {[%clk 0:01:18]}  Rb4+ {[%clk 0:00:16]} 46. Kg5 {[%clk 0:01:10]}  Rb5 {[%clk 0:00:15]} 47. Kf5 {[%clk 0:01:08]}  Bd7+ {[%clk 0:00:07]} 48. Ke4 {[%clk 0:01:08]}  Bc6+ {[%clk 0:00:06]} 49. Kd4 {[%clk 0:01:04]}  Rd5+ {[%clk 0:00:06]} 50. Ke4 {[%clk 0:01:05]}  Rd1+ {[%clk 0:00:05]} 51. Ke3 {[%clk 0:01:03]}  Re1+ {[%clk 0:00:05]} 52. Kf4 {[%clk 0:01:03]}  Re4+ {[%clk 0:00:05]} 53. Kf5 {[%clk 0:01:03]}  Rh4 {[%clk 0:00:02]} 54. Rxg7+ {[%clk 0:01:03]}  Kf8 {[%clk 0:00:00]} 55. Kg5 {[%clk 0:01:01]} 1-0


[Site "https://www.chess.com"]

[Event "Titled Tuesday Blitz August 1 Early 2023"]
[White "Kvaloy, Aksel Bu"]
[Black "Diaz Herquinio, Brahian"]
[WhiteFideId "1528815"]
[BlackFideId "3809480"]
[WhiteElo "2635"]
[BlackElo "2404"]
[Result "1-0"]
[Round "4"]
[TimeControl "180+1"]
[Date "2023.08.01"]
[WhiteClock "0:01:02"]
[BlackClock "0:00:00"]
[Board "147"]

1. b3 {[%clk 0:03:00]}  d5 {[%clk 0:02:59]} 2. Bb2 {[%clk 0:03:01]}  e6 {[%clk 0:02:59]} 3. e3 {[%clk 0:03:02]}  Nf6 {[%clk 0:02:59]} 4. f4 {[%clk 0:03:02]}  Be7 {[%clk 0:02:57]} 5. Nf3 {[%clk 0:03:03]}  O-O {[%clk 0:02:58]} 6. Be2 {[%clk 0:03:02]}  c5 {[%clk 0:02:52]} 7. O-O {[%clk 0:03:02]}  Nfd7 {[%clk 0:02:47]} 8. d3 {[%clk 0:03:01]}  Bf6 {[%clk 0:02:46]} 9. Nc3 {[%clk 0:02:57]}  Nc6 {[%clk 0:02:45]} 10. e4 {[%clk 0:02:55]}  dxe4 {[%clk 0:02:26]} 11. dxe4 {[%clk 0:02:56]}  Nb6 {[%clk 0:02:02]} 12. e5 {[%clk 0:02:52]}  Be7 {[%clk 0:02:01]} 13. Ne4 {[%clk 0:02:51]}  Nd5 {[%clk 0:02:01]} 14. Qd2 {[%clk 0:02:46]}  b6 {[%clk 0:01:48]} 15. c4 {[%clk 0:02:41]}  Nc7 {[%clk 0:01:41]} 16. Rad1 {[%clk 0:02:39]}  Bb7 {[%clk 0:01:28]} 17. Nd6 {[%clk 0:02:34]}  Qb8 {[%clk 0:01:25]} 18. Nxb7 {[%clk 0:02:32]}  Qxb7 {[%clk 0:01:25]} 19. Bd3 {[%clk 0:02:30]}  Rad8 {[%clk 0:01:23]} 20. Qe2 {[%clk 0:02:29]}  Nd4 {[%clk 0:01:20]} 21. Nxd4 {[%clk 0:02:25]}  cxd4 {[%clk 0:01:20]} 22. Be4 {[%clk 0:02:26]}  Qa6 {[%clk 0:01:19]} 23. a4 {[%clk 0:02:19]}  g6 {[%clk 0:01:15]} 24. Kh1 {[%clk 0:02:18]}  Bc5 {[%clk 0:01:08]} 25. h4 {[%clk 0:02:16]}  Ne8 {[%clk 0:01:02]} 26. h5 {[%clk 0:02:16]}  Ng7 {[%clk 0:01:02]} 27. g4 {[%clk 0:02:08]}  Rd7 {[%clk 0:01:00]} 28. h6 {[%clk 0:02:08]}  Ne8 {[%clk 0:00:58]} 29. g5 {[%clk 0:02:07]}  Qc8 {[%clk 0:00:52]} 30. Kg2 {[%clk 0:02:03]}  a5 {[%clk 0:00:52]} 31. Qd3 {[%clk 0:02:02]}  Nc7 {[%clk 0:00:51]} 32. Bc6 {[%clk 0:01:57]}  Rdd8 {[%clk 0:00:51]} 33. Bb5 {[%clk 0:01:44]}  Nxb5 {[%clk 0:00:48]} 34. axb5 {[%clk 0:01:45]}  Qb7+ {[%clk 0:00:47]} 35. Qf3 {[%clk 0:01:45]}  Qa7 {[%clk 0:00:36]} 36. Ra1 {[%clk 0:01:39]}  Rd7 {[%clk 0:00:33]} 37. Rfd1 {[%clk 0:01:38]}  Rfd8 {[%clk 0:00:33]} 38. Rd3 {[%clk 0:01:38]}  Qc7 {[%clk 0:00:28]} 39. Qe4 {[%clk 0:01:37]}  Qa7 {[%clk 0:00:19]} 40. Kf3 {[%clk 0:01:36]}  Kf8 {[%clk 0:00:18]} 41. Qc6 {[%clk 0:01:15]}  Rc7 {[%clk 0:00:17]} 42. Qe4 {[%clk 0:01:16]}  Rcd7 {[%clk 0:00:17]} 43. Ra2 {[%clk 0:01:16]}  Ke7 {[%clk 0:00:16]} 44. Ba1 {[%clk 0:01:16]}  Rc7 {[%clk 0:00:13]} 45. Kg2 {[%clk 0:01:06]}  Rcd7 {[%clk 0:00:13]} 46. Bb2 {[%clk 0:01:05]}  Kf8 {[%clk 0:00:13]} 47. Ra1 {[%clk 0:01:06]}  Qc7 {[%clk 0:00:11]} 48. Rad1 {[%clk 0:01:06]}  Qa7 {[%clk 0:00:10]} 49. Bxd4 {[%clk 0:01:05]}  Bxd4 {[%clk 0:00:04]} 50. Rxd4 {[%clk 0:01:06]}  Rxd4 {[%clk 0:00:04]} 51. Rxd4 {[%clk 0:01:07]}  Rc8 {[%clk 0:00:00]} 52. Qd3 {[%clk 0:01:02]} 1-0


[Site "https://www.chess.com"]

[Event "Titled Tuesday Blitz August 1 Early 2023"]
[White "JonSnowNW1"]
[Black "Iskusnyh, Sergei"]
[BlackFideId "4120027"]
[WhiteElo "2402"]
[BlackElo "2620"]
[Result "0-1"]
[Round "4"]
[TimeControl "180+1"]
[Date "2023.08.01"]
[WhiteClock "0:00:00"]
[BlackClock "0:00:23"]
[Board "148"]

1. c4 {[%clk 0:03:00]}  e5 {[%clk 0:02:58]} 2. Nc3 {[%clk 0:03:00]}  Bb4 {[%clk 0:02:56]} 3. e4 {[%clk 0:02:59]}  d6 {[%clk 0:02:44]} 4. Nge2 {[%clk 0:02:55]}  Nc6 {[%clk 0:02:43]} 5. g3 {[%clk 0:02:47]}  Nge7 {[%clk 0:02:38]} 6. Bg2 {[%clk 0:02:46]}  O-O {[%clk 0:02:37]} 7. O-O {[%clk 0:02:47]}  f5 {[%clk 0:02:37]} 8. d3 {[%clk 0:02:07]}  Bxc3 {[%clk 0:02:26]} 9. Nxc3 {[%clk 0:02:01]}  f4 {[%clk 0:02:25]} 10. f3 {[%clk 0:01:59]}  Ng6 {[%clk 0:02:19]} 11. Bd2 {[%clk 0:01:44]}  Nd4 {[%clk 0:02:13]} 12. g4 {[%clk 0:01:35]}  Nh4 {[%clk 0:02:05]} 13. Be1 {[%clk 0:01:33]}  h5 {[%clk 0:02:01]} 14. h3 {[%clk 0:01:30]}  Be6 {[%clk 0:01:50]} 15. Ne2 {[%clk 0:01:24]}  Nxe2+ {[%clk 0:01:35]} 16. Qxe2 {[%clk 0:01:25]}  Kf7 {[%clk 0:01:26]} 17. Qf2 {[%clk 0:01:18]}  Ng6 {[%clk 0:01:14]} 18. gxh5 {[%clk 0:01:04]}  Ne7 {[%clk 0:01:13]} 19. Qh4 {[%clk 0:00:42]}  Nc6 {[%clk 0:01:11]} 20. Qxd8 {[%clk 0:00:40]}  Raxd8 {[%clk 0:01:12]} 21. Bf2 {[%clk 0:00:34]}  Rh8 {[%clk 0:01:11]} 22. h4 {[%clk 0:00:29]}  Rxh5 {[%clk 0:01:09]} 23. Rfd1 {[%clk 0:00:22]}  Ne7 {[%clk 0:00:59]} 24. Kf1 {[%clk 0:00:22]}  Ng6 {[%clk 0:00:57]} 25. Ke2 {[%clk 0:00:21]}  Nxh4 {[%clk 0:00:57]} 26. Rh1 {[%clk 0:00:18]}  Rdh8 {[%clk 0:00:57]} 27. Bh3 {[%clk 0:00:14]}  Bxh3 {[%clk 0:00:53]} 28. Rxh3 {[%clk 0:00:15]}  Ng6 {[%clk 0:00:53]} 29. Rxh5 {[%clk 0:00:15]}  Rxh5 {[%clk 0:00:53]} 30. Bxa7 {[%clk 0:00:14]}  b6 {[%clk 0:00:50]} 31. Rf1 {[%clk 0:00:11]}  Ne7 {[%clk 0:00:47]} 32. Bb8 {[%clk 0:00:09]}  Nc8 {[%clk 0:00:36]} 33. Bxc7 {[%clk 0:00:09]}  Ke7 {[%clk 0:00:36]} 34. a4 {[%clk 0:00:09]}  Kd7 {[%clk 0:00:34]} 35. Bb8 {[%clk 0:00:08]}  Ne7 {[%clk 0:00:31]} 36. a5 {[%clk 0:00:05]}  Nc6 {[%clk 0:00:31]} 37. a6 {[%clk 0:00:04]}  Nd4+ {[%clk 0:00:24]} 38. Kd2 {[%clk 0:00:00]}  Rh2+ {[%clk 0:00:23]} 0-1


[Site "https://www.chess.com"]